[Event "Titled Tuesday Blitz April 19 Early 2022"]
[White "Baches Garcia, Guillermo"]
[Black "Bernat, David"]
[WhiteFideId "2209764"]
[BlackFideId "2099225"]
[WhiteElo "2502"]
[BlackElo "2291"]
[Result "1-0"]
[Round "02"]
[TimeControl "180+1"]
[Date "2022.04.19"]
[WhiteClock "0:00:20"]
[BlackClock "0:00:02"]

1. e4 {[%clk 0:02:51]}  c5 {[%clk 0:02:59]} 2. Nf3 {[%clk 0:02:51]}  g6 {[%clk 0:02:59]} 3. d4 {[%clk 0:02:50]}  cxd4 {[%clk 0:03:00]} 4. Qxd4 {[%clk 0:02:51]}  Nf6 {[%clk 0:03:00]} 5. c4 {[%clk 0:02:51]}  Nc6 {[%clk 0:03:00]} 6. Qe3 {[%clk 0:02:52]}  d6 {[%clk 0:02:57]} 7. h3 {[%clk 0:02:51]}  Bg7 {[%clk 0:02:55]} 8. Be2 {[%clk 0:02:52]}  O-O {[%clk 0:02:55]} 9. O-O {[%clk 0:02:51]}  h6 {[%clk 0:02:52]} 10. Nc3 {[%clk 0:02:51]}  Be6 {[%clk 0:02:51]} 11. Rd1 {[%clk 0:02:49]}  Qa5 {[%clk 0:02:46]} 12. Bd2 {[%clk 0:02:48]}  Qc5 {[%clk 0:02:43]} 13. Rac1 {[%clk 0:02:40]}  Nd7 {[%clk 0:02:23]} 14. b3 {[%clk 0:02:27]}  Nde5 {[%clk 0:02:02]} 15. Nxe5 {[%clk 0:02:22]}  Nxe5 {[%clk 0:01:58]} 16. Nd5 {[%clk 0:02:13]}  Bxd5 {[%clk 0:01:51]} 17. cxd5 {[%clk 0:02:08]}  Qa3 {[%clk 0:01:43]} 18. Rc7 {[%clk 0:01:53]}  Qxa2 {[%clk 0:01:37]} 19. f4 {[%clk 0:01:50]}  Rac8 {[%clk 0:00:50]} 20. Rdc1 {[%clk 0:01:28]}  Rxc7 {[%clk 0:00:48]} 21. Rxc7 {[%clk 0:01:29]}  Qa1+ {[%clk 0:00:46]} 22. Kh2 {[%clk 0:01:26]}  g5 {[%clk 0:00:39]} 23. fxe5 {[%clk 0:01:21]}  Bxe5+ {[%clk 0:00:40]} 24. g3 {[%clk 0:01:21]}  f5 {[%clk 0:00:40]} 25. Rc1 {[%clk 0:01:00]}  Qa2 {[%clk 0:00:21]} 26. Kg2 {[%clk 0:00:49]}  f4 {[%clk 0:00:18]} 27. Qd3 {[%clk 0:00:40]}  fxg3 {[%clk 0:00:19]} 28. Rf1 {[%clk 0:00:36]}  Rxf1 {[%clk 0:00:15]} 29. Kxf1 {[%clk 0:00:34]}  Qa1+ {[%clk 0:00:12]} 30. Kg2 {[%clk 0:00:29]}  Qa3 {[%clk 0:00:09]} 31. Be3 {[%clk 0:00:27]}  a5 {[%clk 0:00:09]} 32. Bg1 {[%clk 0:00:23]}  a4 {[%clk 0:00:08]} 33. bxa4 {[%clk 0:00:22]}  Qxa4 {[%clk 0:00:09]} 34. Bg4 {[%clk 0:00:21]}  b5 {[%clk 0:00:08]} 35. Qf3 {[%clk 0:00:20]}  Qc2+ {[%clk 0:00:05]} 36. Kh1 {[%clk 0:00:20]}  b4 {[%clk 0:00:03]} 37. Be6+ {[%clk 0:00:20]}  Kh8 {[%clk 0:00:02]} 38. Qf8+ {[%clk 0:00:20]}  Kh7 {[%clk 0:00:02]} 39. Bg8+ {[%clk 0:00:20]}  Kg6 {[%clk 0:00:02]} 40. Qf7# {[%clk 0:00:20]} 1-0


[Site "https://www.chess.com"]

[Event "Titled Tuesday Blitz April 19 Early 2022"]
[White "Bas Mas, Jose Joaquin"]
[Black "Dahlgren, James Allen"]
[WhiteFideId "22219064"]
[BlackFideId "22256873"]
[WhiteElo "2212"]
[BlackElo "2082"]
[Result "0-1"]
[Round "02"]
[TimeControl "180+1"]
[Date "2022.04.19"]
[WhiteClock "0:00:10"]
[BlackClock "0:00:40"]

1. e4 {[%clk 0:03:00]}  e6 {[%clk 0:02:59]} 2. Nf3 {[%clk 0:02:59]}  c5 {[%clk 0:02:59]} 3. Nc3 {[%clk 0:02:58]}  d5 {[%clk 0:02:59]} 4. exd5 {[%clk 0:02:57]}  exd5 {[%clk 0:03:00]} 5. d4 {[%clk 0:02:58]}  Nf6 {[%clk 0:02:58]} 6. Bb5+ {[%clk 0:02:57]}  Bd7 {[%clk 0:02:58]} 7. Be2 {[%clk 0:02:57]}  Bd6 {[%clk 0:02:57]} 8. O-O {[%clk 0:02:55]}  O-O {[%clk 0:02:58]} 9. Bg5 {[%clk 0:02:53]}  Be6 {[%clk 0:02:56]} 10. h3 {[%clk 0:02:48]}  Nbd7 {[%clk 0:02:55]} 11. dxc5 {[%clk 0:02:46]}  Bxc5 {[%clk 0:02:55]} 12. Bb5 {[%clk 0:02:37]}  h6 {[%clk 0:02:52]} 13. Bxd7 {[%clk 0:02:36]}  Qxd7 {[%clk 0:02:40]} 14. Bxf6 {[%clk 0:02:34]}  gxf6 {[%clk 0:02:41]} 15. Qd2 {[%clk 0:02:33]}  Kh7 {[%clk 0:02:40]} 16. Ne2 {[%clk 0:02:23]}  Rad8 {[%clk 0:02:38]} 17. Ned4 {[%clk 0:02:23]}  Bxh3 {[%clk 0:02:26]} 18. Qd3+ {[%clk 0:02:10]}  Kh8 {[%clk 0:02:21]} 19. gxh3 {[%clk 0:01:32]}  Qxh3 {[%clk 0:02:21]} 20. Ng5 {[%clk 0:01:14]}  Qxd3 {[%clk 0:02:14]} 21. cxd3 {[%clk 0:01:14]}  Bxd4 {[%clk 0:02:00]} 22. Nf3 {[%clk 0:01:13]}  Rg8+ {[%clk 0:01:58]} 23. Kh2 {[%clk 0:01:14]}  Be5+ {[%clk 0:01:52]} 24. Kh3 {[%clk 0:01:11]}  b6 {[%clk 0:01:46]} 25. d4 {[%clk 0:01:09]}  Bf4 {[%clk 0:01:42]} 26. Rfe1 {[%clk 0:01:05]}  Rde8 {[%clk 0:01:40]} 27. a4 {[%clk 0:01:01]}  Re4 {[%clk 0:01:32]} 28. a5 {[%clk 0:00:54]}  Rge8 {[%clk 0:01:32]} 29. Rxe4 {[%clk 0:00:52]}  dxe4 {[%clk 0:01:33]} 30. Kg4 {[%clk 0:00:48]}  Bc7 {[%clk 0:01:27]} 31. Nd2 {[%clk 0:00:41]}  bxa5 {[%clk 0:01:26]} 32. Rh1 {[%clk 0:00:38]}  Kg7 {[%clk 0:01:25]} 33. Nf1 {[%clk 0:00:34]}  Rd8 {[%clk 0:01:23]} 34. Ne3 {[%clk 0:00:33]}  Rg8 {[%clk 0:01:10]} 35. Kf5 {[%clk 0:00:31]}  Re8 {[%clk 0:00:58]} 36. Ng4 {[%clk 0:00:27]}  Bb6 {[%clk 0:00:52]} 37. Nxf6 {[%clk 0:00:25]}  Re6 {[%clk 0:00:51]} 38. Nxe4 {[%clk 0:00:17]}  Bxd4 {[%clk 0:00:51]} 39. f3 {[%clk 0:00:18]}  Bxb2 {[%clk 0:00:50]} 40. Rg1+ {[%clk 0:00:18]}  Kh7 {[%clk 0:00:49]} 41. Rb1 {[%clk 0:00:18]}  Bd4 {[%clk 0:00:47]} 42. Rb5 {[%clk 0:00:17]}  Ra6 {[%clk 0:00:43]} 43. Rd5 {[%clk 0:00:17]}  Bg7 {[%clk 0:00:41]} 44. Rd7 {[%clk 0:00:17]}  a4 {[%clk 0:00:41]} 45. Rxf7 {[%clk 0:00:17]}  a3 {[%clk 0:00:41]} 46. Rd7 {[%clk 0:00:15]}  a2 {[%clk 0:00:40]} 47. Nf6+ {[%clk 0:00:10]}  Rxf6+ {[%clk 0:00:40]} 48. Kg4 {[%clk 0:00:10]}  Ra6 {[%clk 0:00:40]} 0-1


[Site "https://www.chess.com"]

[Event "Titled Tuesday Blitz April 19 Early 2022"]
[White "Brodowski, Piotr"]
[Black "Vokhidov, Shamsiddin"]
[WhiteFideId "1124480"]
[BlackFideId "14204223"]
[WhiteElo "2422"]
[BlackElo "2611"]
[Result "0-1"]
[Round "02"]
[TimeControl "180+1"]
[Date "2022.04.19"]
[WhiteClock "0:00:08"]
[BlackClock "0:00:12"]

1. c4 {[%clk 0:02:58]}  e5 {[%clk 0:03:00]} 2. Nc3 {[%clk 0:02:57]}  Nf6 {[%clk 0:03:00]} 3. Nf3 {[%clk 0:02:55]}  Nc6 {[%clk 0:03:00]} 4. e4 {[%clk 0:02:51]}  Bb4 {[%clk 0:02:59]} 5. d3 {[%clk 0:02:49]}  d6 {[%clk 0:02:59]} 6. a3 {[%clk 0:02:43]}  Bc5 {[%clk 0:02:58]} 7. b4 {[%clk 0:02:42]}  Bb6 {[%clk 0:02:58]} 8. Na4 {[%clk 0:02:38]}  Bg4 {[%clk 0:02:52]} 9. Be2 {[%clk 0:02:33]}  Bxf3 {[%clk 0:02:52]} 10. Bxf3 {[%clk 0:02:32]}  Bd4 {[%clk 0:02:53]} 11. Rb1 {[%clk 0:02:27]}  a6 {[%clk 0:02:54]} 12. O-O {[%clk 0:02:26]}  O-O {[%clk 0:02:49]} 13. Bd2 {[%clk 0:01:53]}  Ba7 {[%clk 0:02:48]} 14. g3 {[%clk 0:01:48]}  Nd4 {[%clk 0:02:48]} 15. Bg2 {[%clk 0:01:48]}  c6 {[%clk 0:02:48]} 16. Kh1 {[%clk 0:01:45]}  b5 {[%clk 0:02:42]} 17. Nc3 {[%clk 0:01:44]}  Nd7 {[%clk 0:02:38]} 18. Ne2 {[%clk 0:01:34]}  Qe7 {[%clk 0:02:27]} 19. Be3 {[%clk 0:01:29]}  Nxe2 {[%clk 0:02:27]} 20. Qxe2 {[%clk 0:01:30]}  Bxe3 {[%clk 0:02:26]} 21. Qxe3 {[%clk 0:01:30]}  a5 {[%clk 0:02:24]} 22. cxb5 {[%clk 0:01:15]}  cxb5 {[%clk 0:02:25]} 23. Rfc1 {[%clk 0:01:13]}  axb4 {[%clk 0:02:24]} 24. axb4 {[%clk 0:01:08]}  Nf6 {[%clk 0:02:22]} 25. Bh3 {[%clk 0:00:59]}  Rfd8 {[%clk 0:02:17]} 26. Rc6 {[%clk 0:00:58]}  d5 {[%clk 0:02:08]} 27. exd5 {[%clk 0:00:42]}  Nxd5 {[%clk 0:02:09]} 28. Qc5 {[%clk 0:00:42]}  Qe8 {[%clk 0:02:09]} 29. Bg2 {[%clk 0:00:38]}  Qd7 {[%clk 0:01:50]} 30. Re1 {[%clk 0:00:29]}  f6 {[%clk 0:01:37]} 31. Qxb5 {[%clk 0:00:28]}  Rab8 {[%clk 0:01:27]} 32. Qc4 {[%clk 0:00:28]}  Kh8 {[%clk 0:01:26]} 33. b5 {[%clk 0:00:28]}  h6 {[%clk 0:01:09]} 34. Rb1 {[%clk 0:00:28]}  Nb6 {[%clk 0:01:06]} 35. Qc2 {[%clk 0:00:20]}  Qxd3 {[%clk 0:01:03]} 36. Qxd3 {[%clk 0:00:20]}  Rxd3 {[%clk 0:01:04]} 37. Be4 {[%clk 0:00:20]}  Rd4 {[%clk 0:01:02]} 38. Bg6 {[%clk 0:00:20]}  Kg8 {[%clk 0:00:53]} 39. Ra1 {[%clk 0:00:20]}  Kf8 {[%clk 0:00:51]} 40. Ra7 {[%clk 0:00:19]}  Rd7 {[%clk 0:00:49]} 41. Rxd7 {[%clk 0:00:06]}  Nxd7 {[%clk 0:00:49]} 42. Rc7 {[%clk 0:00:06]}  Nb6 {[%clk 0:00:35]} 43. Kg2 {[%clk 0:00:05]}  Nd5 {[%clk 0:00:27]} 44. Rf7+ {[%clk 0:00:05]}  Kg8 {[%clk 0:00:26]} 45. Rd7 {[%clk 0:00:05]}  Nc3 {[%clk 0:00:24]} 46. b6 {[%clk 0:00:04]}  Na4 {[%clk 0:00:21]} 47. Rc7 {[%clk 0:00:02]}  Nxb6 {[%clk 0:00:21]} 48. Be4 {[%clk 0:00:02]}  Kf8 {[%clk 0:00:20]} 49. h4 {[%clk 0:00:02]}  Rd8 {[%clk 0:00:20]} 50. h5 {[%clk 0:00:03]}  Rd7 {[%clk 0:00:20]} 51. Rc6 {[%clk 0:00:02]}  Nd5 {[%clk 0:00:17]} 52. Rc8+ {[%clk 0:00:03]}  Ke7 {[%clk 0:00:17]} 53. Rg8 {[%clk 0:00:03]}  Kd6 {[%clk 0:00:16]} 54. Rb8 {[%clk 0:00:04]}  Ne7 {[%clk 0:00:15]} 55. Bb1 {[%clk 0:00:03]}  Nc6 {[%clk 0:00:15]} 56. Rg8 {[%clk 0:00:03]}  Nd4 {[%clk 0:00:16]} 57. Ba2 {[%clk 0:00:03]}  Ra7 {[%clk 0:00:16]} 58. Bc4 {[%clk 0:00:03]}  Kc5 {[%clk 0:00:16]} 59. Bd3 {[%clk 0:00:03]}  Kd5 {[%clk 0:00:16]} 60. Bg6 {[%clk 0:00:03]}  Ke6 {[%clk 0:00:16]} 61. Re8+ {[%clk 0:00:03]}  Kd6 {[%clk 0:00:15]} 62. Rb8 {[%clk 0:00:04]}  f5 {[%clk 0:00:15]} 63. Rd8+ {[%clk 0:00:04]}  Ke6 {[%clk 0:00:15]} 64. Re8+ {[%clk 0:00:04]}  Kf6 {[%clk 0:00:16]} 65. Rf8+ {[%clk 0:00:04]}  Kg5 {[%clk 0:00:16]} 66. Re8 {[%clk 0:00:04]}  e4 {[%clk 0:00:17]} 67. Rf8 {[%clk 0:00:05]}  Ra2 {[%clk 0:00:16]} 68. Kg1 {[%clk 0:00:05]}  Ra1+ {[%clk 0:00:16]} 69. Kg2 {[%clk 0:00:06]}  Ra2 {[%clk 0:00:17]} 70. Kg1 {[%clk 0:00:06]}  Rd2 {[%clk 0:00:17]} 71. Kf1 {[%clk 0:00:06]}  Rd3 {[%clk 0:00:16]} 72. Kg1 {[%clk 0:00:06]}  Rd1+ {[%clk 0:00:16]} 73. Kg2 {[%clk 0:00:06]}  Rd2 {[%clk 0:00:15]} 74. Kf1 {[%clk 0:00:06]}  Rb2 {[%clk 0:00:14]} 75. Kg1 {[%clk 0:00:07]}  Rb3 {[%clk 0:00:14]} 76. Kg2 {[%clk 0:00:07]}  Rf3 {[%clk 0:00:14]} 77. Kg1 {[%clk 0:00:08]}  e3 {[%clk 0:00:14]} 78. fxe3 {[%clk 0:00:08]}  Rxg3+ {[%clk 0:00:14]} 79. Kf2 {[%clk 0:00:09]}  Rf3+ {[%clk 0:00:14]} 80. Kg2 {[%clk 0:00:09]}  Rxe3 {[%clk 0:00:15]} 81. Rf7 {[%clk 0:00:10]}  Re2+ {[%clk 0:00:11]} 82. Kf1 {[%clk 0:00:10]}  Rh2 {[%clk 0:00:10]} 83. Rxg7 {[%clk 0:00:10]}  Kf4 {[%clk 0:00:10]} 84. Be8 {[%clk 0:00:11]}  Kf3 {[%clk 0:00:10]} 85. Ke1 {[%clk 0:00:09]}  Re2+ {[%clk 0:00:10]} 86. Kf1 {[%clk 0:00:09]}  Rxe8 {[%clk 0:00:11]} 87. Rg6 {[%clk 0:00:10]}  f4 {[%clk 0:00:11]} 88. Rxh6 {[%clk 0:00:10]}  Rb8 {[%clk 0:00:12]} 89. Kg1 {[%clk 0:00:08]}  Ke2 {[%clk 0:00:11]} 90. Rd6 {[%clk 0:00:08]}  f3 {[%clk 0:00:11]} 91. Rxd4 {[%clk 0:00:07]}  f2+ {[%clk 0:00:12]} 92. Kh2 {[%clk 0:00:08]}  f1=Q {[%clk 0:00:12]} 0-1


[Site "https://www.chess.com"]

[Event "Titled Tuesday Blitz April 19 Early 2022"]
[White "Chan, Kim Yew"]
[Black "Gu, Xiaobing"]
[WhiteFideId "5717981"]
[BlackFideId "8602611"]
[WhiteElo "2206"]
[BlackElo "2174"]
[Result "1/2-1/2"]
[Round "02"]
[TimeControl "180+1"]
[Date "2022.04.19"]
[WhiteClock "0:00:06"]
[BlackClock "0:00:11"]

1. e4 {[%clk 0:03:00]}  c5 {[%clk 0:02:58]} 2. Nc3 {[%clk 0:03:00]}  a6 {[%clk 0:02:57]} 3. g3 {[%clk 0:02:52]}  e6 {[%clk 0:02:50]} 4. Bg2 {[%clk 0:02:51]}  Nc6 {[%clk 0:02:43]} 5. Nge2 {[%clk 0:02:44]}  g6 {[%clk 0:02:41]} 6. d4 {[%clk 0:02:42]}  cxd4 {[%clk 0:02:38]} 7. Nxd4 {[%clk 0:02:43]}  Bg7 {[%clk 0:02:38]} 8. Be3 {[%clk 0:02:40]}  Nge7 {[%clk 0:02:36]} 9. O-O {[%clk 0:02:31]}  O-O {[%clk 0:02:35]} 10. a4 {[%clk 0:02:19]}  b6 {[%clk 0:01:57]} 11. Qd2 {[%clk 0:01:44]}  Bb7 {[%clk 0:01:54]} 12. Rfd1 {[%clk 0:01:43]}  Ne5 {[%clk 0:01:41]} 13. Qe2 {[%clk 0:01:40]}  Rc8 {[%clk 0:01:39]} 14. Nb3 {[%clk 0:00:45]}  Nc4 {[%clk 0:01:36]} 15. Bc1 {[%clk 0:00:44]}  Qc7 {[%clk 0:01:29]} 16. Nd2 {[%clk 0:00:36]}  Nxb2 {[%clk 0:01:22]} 17. Bxb2 {[%clk 0:00:36]}  Bxc3 {[%clk 0:01:22]} 18. Rab1 {[%clk 0:00:35]}  Bg7 {[%clk 0:01:15]} 19. Bxg7 {[%clk 0:00:32]}  Kxg7 {[%clk 0:01:15]} 20. c4 {[%clk 0:00:29]}  Nc6 {[%clk 0:01:05]} 21. Qe3 {[%clk 0:00:28]}  a5 {[%clk 0:00:39]} 22. Qxb6 {[%clk 0:00:26]}  Nb4 {[%clk 0:00:39]} 23. Qd4+ {[%clk 0:00:21]}  Kg8 {[%clk 0:00:39]} 24. Rbc1 {[%clk 0:00:20]}  Qd8 {[%clk 0:00:32]} 25. e5 {[%clk 0:00:18]}  Bxg2 {[%clk 0:00:31]} 26. Kxg2 {[%clk 0:00:19]}  Qc7 {[%clk 0:00:31]} 27. Ne4 {[%clk 0:00:19]}  Rfd8 {[%clk 0:00:30]} 28. c5 {[%clk 0:00:17]}  Nc6 {[%clk 0:00:26]} 29. Nf6+ {[%clk 0:00:12]}  Kg7 {[%clk 0:00:26]} 30. Qh4 {[%clk 0:00:10]}  h5 {[%clk 0:00:23]} 31. Qg5 {[%clk 0:00:04]}  Qxe5 {[%clk 0:00:23]} 32. Nxh5+ {[%clk 0:00:04]}  Kh7 {[%clk 0:00:18]} 33. Nf6+ {[%clk 0:00:04]}  Kg7 {[%clk 0:00:17]} 34. Qxe5 {[%clk 0:00:02]}  Nxe5 {[%clk 0:00:16]} 35. Ne4 {[%clk 0:00:03]}  Rb8 {[%clk 0:00:15]} 36. Rb1 {[%clk 0:00:02]}  Rb4 {[%clk 0:00:15]} 37. Rxb4 {[%clk 0:00:02]}  axb4 {[%clk 0:00:15]} 38. Rb1 {[%clk 0:00:03]}  Rb8 {[%clk 0:00:15]} 39. a5 {[%clk 0:00:02]}  b3 {[%clk 0:00:13]} 40. a6 {[%clk 0:00:02]}  Nc4 {[%clk 0:00:12]} 41. a7 {[%clk 0:00:02]}  Ra8 {[%clk 0:00:12]} 42. Rxb3 {[%clk 0:00:03]}  Rxa7 {[%clk 0:00:12]} 43. Rb4 {[%clk 0:00:03]}  Ne5 {[%clk 0:00:12]} 44. Nd6 {[%clk 0:00:04]}  Kf6 {[%clk 0:00:11]} 45. Rb8 {[%clk 0:00:03]}  Rc7 {[%clk 0:00:11]} 46. Rb5 {[%clk 0:00:03]}  Nd3 {[%clk 0:00:10]} 47. Ne4+ {[%clk 0:00:02]}  Ke5 {[%clk 0:00:09]} 48. f3 {[%clk 0:00:03]}  Kd4 {[%clk 0:00:09]} 49. Rb6 {[%clk 0:00:02]}  Nxc5 {[%clk 0:00:09]} 50. Rd6+ {[%clk 0:00:02]}  Ke5 {[%clk 0:00:08]} 51. Rd1 {[%clk 0:00:01]}  Nxe4 {[%clk 0:00:08]} 52. Re1 {[%clk 0:00:02]}  f5 {[%clk 0:00:08]} 53. fxe4 {[%clk 0:00:02]}  fxe4 {[%clk 0:00:09]} 54. h4 {[%clk 0:00:02]}  Rc2+ {[%clk 0:00:09]} 55. Kh3 {[%clk 0:00:02]}  Kd4 {[%clk 0:00:10]} 56. g4 {[%clk 0:00:03]}  e3 {[%clk 0:00:10]} 57. h5 {[%clk 0:00:03]}  Ke4 {[%clk 0:00:11]} 58. h6 {[%clk 0:00:03]}  Rc8 {[%clk 0:00:11]} 59. Kh4 {[%clk 0:00:03]}  Rh8 {[%clk 0:00:10]} 60. Kg5 {[%clk 0:00:04]}  Kd3 {[%clk 0:00:11]} 61. Kxg6 {[%clk 0:00:04]}  e2 {[%clk 0:00:11]} 62. g5 {[%clk 0:00:04]}  Kd2 {[%clk 0:00:11]} 63. Rh1 {[%clk 0:00:04]}  e1=Q {[%clk 0:00:11]} 64. Rxe1 {[%clk 0:00:04]}  Kxe1 {[%clk 0:00:11]} 65. Kg7 {[%clk 0:00:05]}  Ra8 {[%clk 0:00:11]} 66. g6 {[%clk 0:00:05]}  d5 {[%clk 0:00:11]} 67. h7 {[%clk 0:00:05]}  d4 {[%clk 0:00:11]} 68. Kf6 {[%clk 0:00:04]}  d3 {[%clk 0:00:11]} 69. g7 {[%clk 0:00:04]}  d2 {[%clk 0:00:11]} 70. g8=Q {[%clk 0:00:05]}  Rxg8 {[%clk 0:00:10]} 71. hxg8=Q {[%clk 0:00:05]}  d1=Q {[%clk 0:00:11]} 72. Qg1+ {[%clk 0:00:05]}  Kd2 {[%clk 0:00:10]} 73. Qd4+ {[%clk 0:00:05]}  Ke1 {[%clk 0:00:10]} 74. Qg1+ {[%clk 0:00:05]}  Ke2 {[%clk 0:00:10]} 75. Qg4+ {[%clk 0:00:05]}  Kd2 {[%clk 0:00:10]} 76. Qd4+ {[%clk 0:00:06]}  Ke2 {[%clk 0:00:10]} 77. Qg4+ {[%clk 0:00:06]}  Kd2 {[%clk 0:00:11]} 78. Qd4+ {[%clk 0:00:06]} 1/2-1/2


[Site "https://www.chess.com"]

[Event "Titled Tuesday Blitz April 19 Early 2022"]
[White "Chen, Qi b"]
[Black "Paravyan, David"]
[WhiteFideId "8614733"]
[BlackFideId "4194985"]
[WhiteElo "2432"]
[BlackElo "2569"]
[Result "1/2-1/2"]
[Round "02"]
[TimeControl "180+1"]
[Date "2022.04.19"]
[WhiteClock "0:00:10"]
[BlackClock "0:00:44"]

1. e4 {[%clk 0:03:00]}  e5 {[%clk 0:02:52]} 2. Nf3 {[%clk 0:03:00]}  Nf6 {[%clk 0:02:52]} 3. Nxe5 {[%clk 0:02:56]}  d6 {[%clk 0:02:51]} 4. Nf3 {[%clk 0:02:57]}  Nxe4 {[%clk 0:02:51]} 5. d4 {[%clk 0:02:56]}  d5 {[%clk 0:02:49]} 6. Bd3 {[%clk 0:02:57]}  Bd6 {[%clk 0:02:49]} 7. O-O {[%clk 0:02:54]}  O-O {[%clk 0:02:49]} 8. c4 {[%clk 0:02:47]}  c6 {[%clk 0:02:49]} 9. Nc3 {[%clk 0:02:38]}  Nxc3 {[%clk 0:02:48]} 10. bxc3 {[%clk 0:02:39]}  dxc4 {[%clk 0:02:48]} 11. Bxc4 {[%clk 0:02:40]}  Bg4 {[%clk 0:02:43]} 12. h3 {[%clk 0:02:38]}  Bh5 {[%clk 0:02:42]} 13. g4 {[%clk 0:02:35]}  Bg6 {[%clk 0:02:41]} 14. Ne5 {[%clk 0:02:35]}  b5 {[%clk 0:02:41]} 15. Bb3 {[%clk 0:02:27]}  Nd7 {[%clk 0:02:40]} 16. Nxg6 {[%clk 0:02:24]}  hxg6 {[%clk 0:02:40]} 17. Qf3 {[%clk 0:02:20]}  Rc8 {[%clk 0:02:40]} 18. a4 {[%clk 0:02:11]}  b4 {[%clk 0:02:37]} 19. cxb4 {[%clk 0:01:50]}  Bxb4 {[%clk 0:02:38]} 20. Be3 {[%clk 0:01:37]}  Nb6 {[%clk 0:02:02]} 21. Rac1 {[%clk 0:01:34]}  Nd5 {[%clk 0:01:57]} 22. Rc4 {[%clk 0:01:27]}  a5 {[%clk 0:01:49]} 23. Rfc1 {[%clk 0:01:12]}  Qd6 {[%clk 0:01:43]} 24. R4c2 {[%clk 0:00:52]}  Nxe3 {[%clk 0:01:37]} 25. fxe3 {[%clk 0:00:43]}  c5 {[%clk 0:01:35]} 26. Kg2 {[%clk 0:00:40]}  Rc7 {[%clk 0:01:24]} 27. dxc5 {[%clk 0:00:29]}  Rxc5 {[%clk 0:01:19]} 28. Rxc5 {[%clk 0:00:17]}  Bxc5 {[%clk 0:01:20]} 29. Qd5 {[%clk 0:00:13]}  Qxd5+ {[%clk 0:01:10]} 30. Bxd5 {[%clk 0:00:14]}  Rc8 {[%clk 0:00:43]} 31. e4 {[%clk 0:00:12]}  Rc7 {[%clk 0:00:43]} 32. Rc4 {[%clk 0:00:10]}  Bd6 {[%clk 0:00:43]} 33. Rxc7 {[%clk 0:00:10]}  Bxc7 {[%clk 0:00:44]} 34. Kf3 {[%clk 0:00:10]} 1/2-1/2


[Site "https://www.chess.com"]

[Event "Titled Tuesday Blitz April 19 Early 2022"]
[White "Dang, Hoang Son"]
[Black "Bortnyk, Olexandr"]
[WhiteFideId "12402435"]
[BlackFideId "14120828"]
[WhiteElo "2252"]
[BlackElo "2723"]
[Result "0-1"]
[Round "02"]
[TimeControl "180+1"]
[Date "2022.04.19"]
[WhiteClock "0:00:03"]
[BlackClock "0:00:06"]

1. d4 {[%clk 0:03:00]}  d6 {[%clk 0:02:50]} 2. Nf3 {[%clk 0:03:00]}  g6 {[%clk 0:02:48]} 3. Bf4 {[%clk 0:03:00]}  Bg7 {[%clk 0:02:47]} 4. e3 {[%clk 0:03:00]}  Nc6 {[%clk 0:02:37]} 5. Bc4 {[%clk 0:02:57]}  Nf6 {[%clk 0:02:20]} 6. Nbd2 {[%clk 0:02:54]}  O-O {[%clk 0:02:18]} 7. h3 {[%clk 0:02:54]}  a6 {[%clk 0:02:06]} 8. a4 {[%clk 0:02:48]}  b6 {[%clk 0:02:07]} 9. O-O {[%clk 0:02:48]}  Bb7 {[%clk 0:02:07]} 10. Re1 {[%clk 0:02:48]}  Qe8 {[%clk 0:01:55]} 11. c3 {[%clk 0:02:04]}  e5 {[%clk 0:01:53]} 12. Bg3 {[%clk 0:02:03]}  e4 {[%clk 0:01:38]} 13. Nh2 {[%clk 0:02:03]}  Nh5 {[%clk 0:01:37]} 14. Bh4 {[%clk 0:01:57]}  Ne7 {[%clk 0:01:33]} 15. f4 {[%clk 0:01:43]}  exf3 {[%clk 0:01:01]} 16. Nhxf3 {[%clk 0:01:43]}  d5 {[%clk 0:01:02]} 17. Bd3 {[%clk 0:01:40]}  c5 {[%clk 0:00:46]} 18. a5 {[%clk 0:01:41]}  c4 {[%clk 0:00:43]} 19. Bc2 {[%clk 0:01:39]}  bxa5 {[%clk 0:00:44]} 20. e4 {[%clk 0:01:37]}  Qd7 {[%clk 0:00:35]} 21. Ne5 {[%clk 0:01:14]}  Qc7 {[%clk 0:00:32]} 22. Bxe7 {[%clk 0:00:58]}  Qxe7 {[%clk 0:00:33]} 23. exd5 {[%clk 0:00:58]}  Bxd5 {[%clk 0:00:31]} 24. Nxg6 {[%clk 0:00:51]}  Qxe1+ {[%clk 0:00:29]} 25. Qxe1 {[%clk 0:00:50]}  fxg6 {[%clk 0:00:27]} 26. Be4 {[%clk 0:00:42]}  Bxe4 {[%clk 0:00:22]} 27. Qxe4 {[%clk 0:00:42]}  Rae8 {[%clk 0:00:23]} 28. Qd5+ {[%clk 0:00:41]}  Kh8 {[%clk 0:00:24]} 29. Nxc4 {[%clk 0:00:38]}  Nf4 {[%clk 0:00:24]} 30. Qxa5 {[%clk 0:00:28]}  Re2 {[%clk 0:00:23]} 31. Qg5 {[%clk 0:00:24]}  h6 {[%clk 0:00:12]} 32. Qg4 {[%clk 0:00:23]}  h5 {[%clk 0:00:12]} 33. Qf3 {[%clk 0:00:17]}  Rf5 {[%clk 0:00:12]} 34. Rf1 {[%clk 0:00:15]}  Bh6 {[%clk 0:00:09]} 35. Ne3 {[%clk 0:00:13]}  Nxh3+ {[%clk 0:00:06]} 36. Qxh3 {[%clk 0:00:12]}  Bxe3+ {[%clk 0:00:06]} 37. Kh2 {[%clk 0:00:11]}  Rxf1 {[%clk 0:00:07]} 38. Qc8+ {[%clk 0:00:10]}  Kg7 {[%clk 0:00:08]} 39. Qb7+ {[%clk 0:00:09]}  Rf7 {[%clk 0:00:07]} 40. Qxa6 {[%clk 0:00:07]}  Bf4+ {[%clk 0:00:08]} 41. Kg1 {[%clk 0:00:06]}  Rxb2 {[%clk 0:00:07]} 42. Qd3 {[%clk 0:00:05]}  h4 {[%clk 0:00:06]} 43. d5 {[%clk 0:00:04]}  Bg3 {[%clk 0:00:07]} 44. Qd4+ {[%clk 0:00:03]}  Kh7 {[%clk 0:00:07]} 45. Qd1 {[%clk 0:00:03]}  Re7 {[%clk 0:00:06]} 46. Kf1 {[%clk 0:00:03]}  Re1+ {[%clk 0:00:06]} 0-1


[Site "https://www.chess.com"]